[Event "*** Titled Tuesday Blitz"]
[Site "Chess.com"]
[Date "2020.10.20"]
[Round "7"]
[White "Zmeeed63"]
[Black "Mbneu"]
[Result "1-0"]
[WhiteElo "2359"]
[BlackElo "2224"]
[TimeControl "180+1"]
[EndTime "11:20:05 PDT"]
[Termination "Zmeeed63 won by resignation"]

1. d4 {[%clk 0:03:00.9]} 1... Nf6 {[%clk 0:02:59.1]} 2. c4 {[%clk 0:03:00]} 2...
c5 {[%clk 0:02:59.3]} 3. d5 {[%clk 0:02:59.2]} 3... e6 {[%clk 0:02:59.8]} 4. Nf3
{[%clk 0:02:56.7]} 4... exd5 {[%clk 0:03:00.3]} 5. cxd5 {[%clk 0:02:57.6]} 5...
d6 {[%clk 0:03:00.7]} 6. Nc3 {[%clk 0:02:51.3]} 6... g6 {[%clk 0:03:00.8]} 7.
Bf4 {[%clk 0:02:51.1]} 7... Bg7 {[%clk 0:03:00.2]} 8. Qa4+ {[%clk 0:02:50]} 8...
Bd7 {[%clk 0:02:59.8]} 9. Qb3 {[%clk 0:02:49.6]} 9... b5 {[%clk 0:03:00.3]} 10.
Nxb5 {[%clk 0:02:47.4]} 10... Bxb5 {[%clk 0:02:59.8]} 11. Qxb5+ {[%clk
0:02:48.3]} 11... Nbd7 {[%clk 0:02:59.8]} 12. Bxd6 {[%clk 0:02:41.5]} 12... Ne4
{[%clk 0:03:00.2]} 13. Bf4 {[%clk 0:02:18.9]} 13... O-O {[%clk 0:02:42.3]} 14.
g3 {[%clk 0:02:14]} 14... Qf6 {[%clk 0:02:14.9]} 15. Bh3 {[%clk 0:02:03.9]}
15... Qxb2 {[%clk 0:02:11]} 16. Qxb2 {[%clk 0:02:04.8]} 16... Bxb2 {[%clk
0:02:09.8]} 17. Rb1 {[%clk 0:02:05.5]} 17... Bc3+ {[%clk 0:02:06.8]} 18. Kf1
{[%clk 0:02:06]} 18... Nb6 {[%clk 0:02:02.6]} 19. Rd1 {[%clk 0:01:41.5]} 19...
Rad8 {[%clk 0:01:53.6]} 20. d6 {[%clk 0:01:37.6]} 20... f5 {[%clk 0:01:50]} 21.
Ng5 {[%clk 0:01:31.2]} 21... Nxg5 {[%clk 0:01:28.8]} 22. Bxg5 {[%clk 0:01:32.1]}
22... Bf6 {[%clk 0:01:28.6]} 23. Bf4 {[%clk 0:01:28.3]} 23... Kf7 {[%clk
0:00:48.7]} 24. Bg2 {[%clk 0:01:06.1]} 24... g5 {[%clk 0:00:42.2]} 25. Be3
{[%clk 0:01:02.2]} 25... c4 {[%clk 0:00:28.7]} 26. Bxb6 {[%clk 0:01:01]} 26...
axb6 {[%clk 0:00:28.2]} 27. Bd5+ {[%clk 0:01:01.6]} 27... Kg6 {[%clk 0:00:27.7]}
28. Bxc4 {[%clk 0:01:02.1]} 28... Rc8 {[%clk 0:00:23]} 29. Be6 {[%clk
0:00:58.9]} 29... Rc6 {[%clk 0:00:20.5]} 30. Bd5 {[%clk 0:00:51.2]} 30... Rc5
{[%clk 0:00:20.3]} 31. Bb3 {[%clk 0:00:50.6]} 31... Rd8 {[%clk 0:00:19.5]} 32.
h4 {[%clk 0:00:50.3]} 32... gxh4 {[%clk 0:00:17.3]} 33. gxh4 {[%clk 0:00:51.2]}
33... Rc6 {[%clk 0:00:15.8]} 34. h5+ {[%clk 0:00:48]} 34... Kh6 {[%clk
0:00:15.6]} 35. d7 {[%clk 0:00:47.4]} 35... Rc7 {[%clk 0:00:15.1]} 36. Be6
{[%clk 0:00:47.1]} 36... f4 {[%clk 0:00:13.8]} 37. Rh3 {[%clk 0:00:43.4]} 37...
Rc6 {[%clk 0:00:12.7]} 38. Bf5 {[%clk 0:00:41.7]} 38... Be5 {[%clk 0:00:12.3]}
39. Rd5 {[%clk 0:00:35.6]} 39... Bc7 {[%clk 0:00:11.7]} 40. Rhd3 {[%clk
0:00:19.7]} 40... Rc1+ {[%clk 0:00:10.9]} 41. Kg2 {[%clk 0:00:19.8]} 41... Rg8+
{[%clk 0:00:10.9]} 42. Kf3 {[%clk 0:00:20]} 42... Rh1 {[%clk 0:00:09.7]} 43.
d8=Q {[%clk 0:00:18.6]} 43... Bxd8 {[%clk 0:00:06.5]} 44. Rxd8 {[%clk
0:00:19.5]} 1-0

[Event "*** Titled Tuesday Blitz"]
[Site "Chess.com"]
[Date "2020.10.20"]
[Round "7"]
[White "Maghalashvili"]
[Black "Fh2411"]
[Result "1/2-1/2"]
[WhiteElo "2671"]
[BlackElo "2519"]
[TimeControl "180+1"]
[EndTime "11:20:06 PDT"]
[Termination "Game drawn by repetition"]

1. Nf3 {[%clk 0:02:07.7]} 1... d5 {[%clk 0:02:58.2]} 2. g3 {[%clk 0:02:07.5]}
2... c6 {[%clk 0:02:57.9]} 3. Bg2 {[%clk 0:02:06.9]} 3... Nf6 {[%clk 0:02:58.5]}
4. O-O {[%clk 0:02:07.8]} 4... Bf5 {[%clk 0:02:58.9]} 5. c4 {[%clk 0:02:08.6]}
5... e6 {[%clk 0:02:59.3]} 6. d3 {[%clk 0:02:08.5]} 6... Nbd7 {[%clk 0:02:59.5]}
7. cxd5 {[%clk 0:02:08.7]} 7... exd5 {[%clk 0:02:59.3]} 8. Nc3 {[%clk
0:02:08.5]} 8... Bb4 {[%clk 0:02:56]} 9. Qb3 {[%clk 0:02:05.8]} 9... Qb6 {[%clk
0:02:55.3]} 10. a3 {[%clk 0:02:04.3]} 10... Bc5 {[%clk 0:02:52.2]} 11. Qc2
{[%clk 0:02:04]} 11... Ng4 {[%clk 0:02:49.2]} 12. e3 {[%clk 0:01:50.4]} 12...
O-O {[%clk 0:02:35.6]} 13. b4 {[%clk 0:01:44.9]} 13... Be7 {[%clk 0:02:34.1]}
14. e4 {[%clk 0:01:45.1]} 14... dxe4 {[%clk 0:02:26.5]} 15. dxe4 {[%clk
0:01:46]} 15... Bg6 {[%clk 0:02:26.8]} 16. h3 {[%clk 0:01:46]} 16... Nge5 {[%clk
0:02:09.5]} 17. Be3 {[%clk 0:01:45]} 17... Qa6 {[%clk 0:02:06.1]} 18. Nd4 {[%clk
0:01:41.1]} 18... Nc4 {[%clk 0:02:02.4]} 19. Bf4 {[%clk 0:01:37.9]} 19... Bf6
{[%clk 0:01:43.5]} 20. Rfd1 {[%clk 0:01:36.6]} 20... b5 {[%clk 0:01:31.1]} 21.
a4 {[%clk 0:01:33.5]} 21... Qb6 {[%clk 0:01:27.5]} 22. Nb3 {[%clk 0:01:21.9]}
22... Rfd8 {[%clk 0:01:18.6]} 23. axb5 {[%clk 0:01:20.4]} 23... cxb5 {[%clk
0:01:19.5]} 24. Nd5 {[%clk 0:01:20.4]} 24... Qe6 {[%clk 0:01:08.3]} 25. Nc7
{[%clk 0:01:15.7]} 25... Qe7 {[%clk 0:01:06.4]} 26. Nxa8 {[%clk 0:01:14.1]}
26... Bxa1 {[%clk 0:01:06.2]} 27. Rxa1 {[%clk 0:01:12.1]} 27... Rxa8 {[%clk
0:01:03.2]} 28. Nd4 {[%clk 0:01:12.1]} 28... Qxb4 {[%clk 0:00:44.1]} 29. Qa2
{[%clk 0:01:08.1]} 29... a6 {[%clk 0:00:40.2]} 30. e5 {[%clk 0:01:04.5]} 30...
Re8 {[%clk 0:00:39.4]} 31. Qxa6 {[%clk 0:00:55.2]} 31... Ncxe5 {[%clk
0:00:38.5]} 32. Qxb5 {[%clk 0:00:52.1]} 32... Qxd4 {[%clk 0:00:37.6]} 33. Ra4
{[%clk 0:00:39.7]} 33... Qd1+ {[%clk 0:00:35.3]} 34. Kh2 {[%clk 0:00:39.3]}
34... h6 {[%clk 0:00:31.3]} 35. Ra7 {[%clk 0:00:32.9]} 35... Rb8 {[%clk
0:00:27.4]} 36. Qd5 {[%clk 0:00:25.8]} 36... Qxd5 {[%clk 0:00:24.2]} 37. Bxd5
{[%clk 0:00:26.7]} 37... Rb2 {[%clk 0:00:24.3]} 38. Kg2 {[%clk 0:00:24.2]} 38...
Kh7 {[%clk 0:00:20.8]} 39. g4 {[%clk 0:00:24]} 39... f6 {[%clk 0:00:20.6]} 40.
h4 {[%clk 0:00:24]} 40... h5 {[%clk 0:00:20.7]} 41. g5 {[%clk 0:00:21.1]} 41...
Nd3 {[%clk 0:00:17.3]} 42. Be3 {[%clk 0:00:19]} 42... N3e5 {[%clk 0:00:16.3]}
43. Bf4 {[%clk 0:00:18]} 43... Re2 {[%clk 0:00:15.6]} 44. Bb3 {[%clk 0:00:14.9]}
44... Rb2 {[%clk 0:00:15]} 45. Bd5 {[%clk 0:00:14.7]} 1/2-1/2

[Event "*** Titled Tuesday Blitz"]
[Site "Chess.com"]
[Date "2020.10.20"]
[Round "7"]
[White "Das_Virus_2020"]
[Black "MarceloPlaya"]
[Result "1-0"]
[WhiteElo "2429"]
[BlackElo "2290"]
[TimeControl "180+1"]
[EndTime "11:20:06 PDT"]
[Termination "Das_Virus_2020 won on time"]

1. e4 {[%clk 0:03:00.9]} 1... e6 {[%clk 0:02:59.5]} 2. Qe2 {[%clk 0:02:59.1]}
2... d5 {[%clk 0:02:57.2]} 3. exd5 {[%clk 0:02:58.6]} 3... Qxd5 {[%clk
0:02:57.3]} 4. Nc3 {[%clk 0:02:58.7]} 4... Qa5 {[%clk 0:02:56.3]} 5. g3 {[%clk
0:02:58.1]} 5... Nf6 {[%clk 0:02:56.2]} 6. Bg2 {[%clk 0:02:58.6]} 6... Be7
{[%clk 0:02:54.3]} 7. Nf3 {[%clk 0:02:58.3]} 7... O-O {[%clk 0:02:53.8]} 8. O-O
{[%clk 0:02:58.9]} 8... Nc6 {[%clk 0:02:51.2]} 9. a3 {[%clk 0:02:57.6]} 9... Qh5
{[%clk 0:02:45]} 10. d4 {[%clk 0:02:55.1]} 10... Rd8 {[%clk 0:02:40.2]} 11. Rd1
{[%clk 0:02:46.7]} 11... Nd5 {[%clk 0:02:27]} 12. Ne4 {[%clk 0:02:41.3]} 12...
Bd7 {[%clk 0:02:19.8]} 13. c4 {[%clk 0:02:36.3]} 13... Nf6 {[%clk 0:02:18.3]}
14. Nc3 {[%clk 0:02:34.7]} 14... Na5 {[%clk 0:01:47.9]} 15. Bf4 {[%clk
0:02:06.3]} 15... Bd6 {[%clk 0:01:37.5]} 16. Bg5 {[%clk 0:02:03.7]} 16... Bc6
{[%clk 0:01:22.6]} 17. b4 {[%clk 0:02:00.9]} 17... Bxf3 {[%clk 0:01:19.6]} 18.
Bxf3 {[%clk 0:01:44.6]} 18... Qxg5 {[%clk 0:01:18.9]} 19. bxa5 {[%clk
0:01:44.7]} 19... Qxa5 {[%clk 0:01:17.4]} 20. Qe3 {[%clk 0:01:32.9]} 20... c6
{[%clk 0:01:12.1]} 21. Rdb1 {[%clk 0:01:20.1]} 21... Qc7 {[%clk 0:01:10.4]} 22.
Rb3 {[%clk 0:01:11.3]} 22... Rab8 {[%clk 0:01:04.2]} 23. Rab1 {[%clk 0:01:10.8]}
23... Nd7 {[%clk 0:00:51.1]} 24. Ne4 {[%clk 0:01:05.2]} 24... Be7 {[%clk
0:00:49.5]} 25. h4 {[%clk 0:01:01.9]} 25... b6 {[%clk 0:00:44.7]} 26. Bg2 {[%clk
0:00:52.4]} 26... c5 {[%clk 0:00:43.7]} 27. d5 {[%clk 0:00:49]} 27... exd5
{[%clk 0:00:40.5]} 28. cxd5 {[%clk 0:00:49.9]} 28... Bd6 {[%clk 0:00:38.7]} 29.
Rd1 {[%clk 0:00:46.1]} 29... Re8 {[%clk 0:00:33.5]} 30. Qc1 {[%clk 0:00:38.3]}
30... Re7 {[%clk 0:00:32.1]} 31. Re3 {[%clk 0:00:32.6]} 31... Rbe8 {[%clk
0:00:30.8]} 32. Rde1 {[%clk 0:00:31.2]} 32... Nf8 {[%clk 0:00:14.3]} 33. Qd1
{[%clk 0:00:22.3]} 33... f6 {[%clk 0:00:13.9]} 34. Bh3 {[%clk 0:00:19.1]} 34...
Ng6 {[%clk 0:00:12.3]} 35. Nxd6 {[%clk 0:00:18.1]} 35... Qxd6 {[%clk 0:00:11.3]}
36. Rxe7 {[%clk 0:00:17.9]} 36... Rxe7 {[%clk 0:00:10.9]} 37. Rxe7 {[%clk
0:00:13.1]} 37... Nxe7 {[%clk 0:00:09.7]} 38. Be6+ {[%clk 0:00:13.1]} 38... Kf8
{[%clk 0:00:09.1]} 39. Qh5 {[%clk 0:00:12.7]} 1-0

[Event "*** Titled Tuesday Blitz"]
[Site "Chess.com"]
[Date "2020.10.20"]
[Round "7"]
[White "alejanchess73"]
[Black "Belka1989"]
[Result "0-1"]
[WhiteElo "2415"]
[BlackElo "2308"]
[TimeControl "180+1"]
[EndTime "11:20:07 PDT"]
[Termination "Belka1989 won by checkmate"]

1. e4 {[%clk 0:03:00.9]} 1... c5 {[%clk 0:02:59.6]} 2. Nf3 {[%clk 0:03:00.1]}
2... d6 {[%clk 0:02:59.9]} 3. d4 {[%clk 0:03:00.1]} 3... cxd4 {[%clk 0:03:00.8]}
4. Nxd4 {[%clk 0:03:00.6]} 4... Nf6 {[%clk 0:03:01.3]} 5. Nc3 {[%clk 0:03:01.1]}
5... a6 {[%clk 0:03:01.6]} 6. h3 {[%clk 0:03:01.5]} 6... e5 {[%clk 0:03:01.6]}
7. Nde2 {[%clk 0:03:00.7]} 7... h5 {[%clk 0:03:02]} 8. g3 {[%clk 0:02:59.5]}
8... Be6 {[%clk 0:03:01.4]} 9. Bg2 {[%clk 0:02:59.4]} 9... Be7 {[%clk
0:03:01.5]} 10. Bg5 {[%clk 0:02:59.2]} 10... Nbd7 {[%clk 0:03:01.4]} 11. O-O
{[%clk 0:02:54.6]} 11... Rc8 {[%clk 0:03:01.7]} 12. f4 {[%clk 0:02:43.4]} 12...
Bc4 {[%clk 0:03:00.5]} 13. f5 {[%clk 0:02:36.9]} 13... Bxe2 {[%clk 0:02:47.4]}
14. Qxe2 {[%clk 0:02:32.2]} 14... Qb6+ {[%clk 0:02:43.6]} 15. Kh1 {[%clk
0:02:14.5]} 15... Qxb2 {[%clk 0:02:43]} 16. Na4 {[%clk 0:02:09.1]} 16... Qxc2
{[%clk 0:02:40.9]} 17. Qxc2 {[%clk 0:02:04.9]} 17... Rxc2 {[%clk 0:02:41.8]} 18.
Rac1 {[%clk 0:02:01.4]} 18... Rxc1 {[%clk 0:02:41.5]} 19. Rxc1 {[%clk
0:02:01.1]} 19... Nc5 {[%clk 0:02:41.9]} 20. Bxf6 {[%clk 0:01:58.7]} 20... gxf6
{[%clk 0:02:33.4]} 21. Nc3 {[%clk 0:01:55.2]} 21... h4 {[%clk 0:02:24.2]} 22. g4
{[%clk 0:01:54.2]} 22... Kd7 {[%clk 0:02:14]} 23. Nd5 {[%clk 0:01:53.7]} 23...
Rb8 {[%clk 0:02:14.3]} 24. Nb6+ {[%clk 0:01:48.7]} 24... Kc6 {[%clk 0:02:08.1]}
25. Nd5 {[%clk 0:01:47.3]} 25... Bd8 {[%clk 0:02:08.3]} 26. Bf1 {[%clk
0:01:26.1]} 26... Kd7 {[%clk 0:02:06.7]} 27. Bg2 {[%clk 0:01:20.1]} 27... b5
{[%clk 0:02:06.8]} 28. Kg1 {[%clk 0:01:18.5]} 28... b4 {[%clk 0:02:03.6]} 29.
Rc4 {[%clk 0:01:12.6]} 29... b3 {[%clk 0:01:54]} 30. axb3 {[%clk 0:01:12.2]}
30... Rxb3 {[%clk 0:01:54.9]} 31. Bf1 {[%clk 0:01:06]} 31... a5 {[%clk
0:01:42.8]} 32. Rc2 {[%clk 0:01:02]} 32... Nxe4 {[%clk 0:01:24.2]} 33. Bc4
{[%clk 0:00:58.5]} 33... Rb1+ {[%clk 0:01:17.3]} 34. Kg2 {[%clk 0:00:57.4]}
34... Nc5 {[%clk 0:01:15.2]} 35. Nc3 {[%clk 0:00:53.6]} 35... Rb4 {[%clk
0:00:46.3]} 36. Bxf7 {[%clk 0:00:52.4]} 36... a4 {[%clk 0:00:39.6]} 37. Nd5
{[%clk 0:00:47.5]} 37... Rb3 {[%clk 0:00:35.4]} 38. Nxf6+ {[%clk 0:00:27.7]}
38... Bxf6 {[%clk 0:00:34.5]} 39. Bxb3 {[%clk 0:00:28.3]} 39... axb3 {[%clk
0:00:32.3]} 40. Rf2 {[%clk 0:00:26.8]} 40... Nd3 {[%clk 0:00:24.4]} 41. Rf1
{[%clk 0:00:24.5]} 41... b2 {[%clk 0:00:24.6]} 42. Kf3 {[%clk 0:00:25]} 42...
Nc1 {[%clk 0:00:24.2]} 43. g5 {[%clk 0:00:25.9]} 43... Bxg5 {[%clk 0:00:23.4]}
44. Kg4 {[%clk 0:00:25.8]} 44... Bf6 {[%clk 0:00:22.6]} 45. Kh5 {[%clk
0:00:25.1]} 45... b1=Q {[%clk 0:00:20.6]} 46. Kg6 {[%clk 0:00:25.6]} 46... Be7
{[%clk 0:00:17.9]} 47. Kf7 {[%clk 0:00:24.8]} 47... Qb3+ {[%clk 0:00:15.5]} 48.
Kg7 {[%clk 0:00:25.2]} 48... Qg3+ {[%clk 0:00:13.9]} 49. Kh8 {[%clk 0:00:23.6]}
49... Bf6+ {[%clk 0:00:13.2]} 50. Kh7 {[%clk 0:00:24]} 50... Qg7# {[%clk
0:00:14.1]} 0-1

[Event "*** Titled Tuesday Blitz"]
[Site "Chess.com"]
[Date "2020.10.20"]
[Round "7"]
[White "IwkooO"]
[Black "zverr1"]
[Result "1-0"]
[WhiteElo "2625"]
[BlackElo "2418"]
[TimeControl "180+1"]
[EndTime "11:20:08 PDT"]
[Termination "IwkooO won by resignation"]

1. e4 {[%clk 0:02:59.3]} 1... e6 {[%clk 0:02:59]} 2. d4 {[%clk 0:02:58.8]} 2...
d5 {[%clk 0:02:59.3]} 3. Nd2 {[%clk 0:02:59.7]} 3... c5 {[%clk 0:02:59]} 4. exd5
{[%clk 0:02:59.7]} 4... exd5 {[%clk 0:02:59.9]} 5. Ngf3 {[%clk 0:02:59.8]} 5...
Nc6 {[%clk 0:02:59.6]} 6. Bb5 {[%clk 0:02:59.3]} 6... Qe7+ {[%clk 0:02:58.6]} 7.
Qe2 {[%clk 0:02:59.4]} 7... Qxe2+ {[%clk 0:02:46.5]} 8. Kxe2 {[%clk 0:02:59.5]}
8... cxd4 {[%clk 0:02:47]} 9. Nxd4 {[%clk 0:02:59.5]} 9... Bd7 {[%clk
0:02:46.8]} 10. N2f3 {[%clk 0:02:58.8]} 10... Bc5 {[%clk 0:02:34.1]} 11. Be3
{[%clk 0:02:54.8]} 11... Nxd4+ {[%clk 0:02:31]} 12. Nxd4 {[%clk 0:02:54.4]}
12... Nf6 {[%clk 0:02:22.9]} 13. Rhd1 {[%clk 0:02:34.6]} 13... O-O-O {[%clk
0:02:12.9]} 14. Bxd7+ {[%clk 0:02:26.6]} 14... Rxd7 {[%clk 0:02:13.8]} 15. Kf1
{[%clk 0:02:26.2]} 15... Re8 {[%clk 0:02:05.4]} 16. c3 {[%clk 0:02:25.4]} 16...
Ng4 {[%clk 0:02:04.1]} 17. Bf4 {[%clk 0:02:10.7]} 17... Re4 {[%clk 0:01:59.3]}
18. Bg3 {[%clk 0:02:10.9]} 18... Bxd4 {[%clk 0:01:58.2]} 19. cxd4 {[%clk
0:02:10.5]} 19... Re6 {[%clk 0:01:45.1]} 20. Rac1+ {[%clk 0:02:08.8]} 20... Kd8
{[%clk 0:01:44.2]} 21. Rc3 {[%clk 0:01:58.8]} 21... Nf6 {[%clk 0:01:38.1]} 22.
Rdc1 {[%clk 0:01:57]} 22... Ne4 {[%clk 0:01:38.6]} 23. Rc8+ {[%clk 0:01:56.7]}
23... Ke7 {[%clk 0:01:39.2]} 24. Bf4 {[%clk 0:01:44.3]} 24... Nd6 {[%clk
0:01:33.5]} 25. Rg8 {[%clk 0:01:26.6]} 25... Nf5 {[%clk 0:01:09.1]} 26. Be5
{[%clk 0:00:54.9]} 26... Rc6 {[%clk 0:00:53.3]} 27. Rxc6 {[%clk 0:00:53.3]}
27... bxc6 {[%clk 0:00:54.2]} 28. g4 {[%clk 0:00:46.2]} 28... f6 {[%clk
0:00:33.3]} 29. gxf5 {[%clk 0:00:44.8]} 29... fxe5 {[%clk 0:00:33.8]} 30. Rxg7+
{[%clk 0:00:44.9]} 30... Ke8 {[%clk 0:00:34.5]} 31. Rxd7 {[%clk 0:00:38.2]}
31... Kxd7 {[%clk 0:00:35.4]} 32. dxe5 {[%clk 0:00:38.7]} 32... c5 {[%clk
0:00:33.9]} 33. Ke2 {[%clk 0:00:34]} 33... a5 {[%clk 0:00:32.4]} 34. Kd3 {[%clk
0:00:32.3]} 34... a4 {[%clk 0:00:29.1]} 35. b3 {[%clk 0:00:15.9]} 35... axb3
{[%clk 0:00:21]} 36. axb3 {[%clk 0:00:16.8]} 36... Ke7 {[%clk 0:00:21.2]} 37. f4
{[%clk 0:00:16.7]} 37... Kf7 {[%clk 0:00:21]} 38. Kc3 {[%clk 0:00:17.2]} 38...
Ke7 {[%clk 0:00:15.6]} 39. f6+ {[%clk 0:00:17.4]} 39... Ke6 {[%clk 0:00:15.6]}
40. f5+ {[%clk 0:00:17]} 40... Kf7 {[%clk 0:00:16.1]} 41. b4 {[%clk 0:00:12.1]}
41... d4+ {[%clk 0:00:13.1]} 42. Kc4 {[%clk 0:00:12.6]} 42... h5 {[%clk
0:00:11.9]} 43. bxc5 {[%clk 0:00:12.4]} 43... d3 {[%clk 0:00:12.6]} 44. Kxd3
{[%clk 0:00:12.8]} 1-0

[Event "*** Titled Tuesday Blitz"]
[Site "Chess.com"]
[Date "2020.10.20"]
[Round "7"]
[White "C_K_G"]
[Black "ikhasu"]
[Result "1-0"]
[WhiteElo "2132"]
[BlackElo "2413"]
[TimeControl "180+1"]
[EndTime "11:20:08 PDT"]
[Termination "C_K_G won on time"]

1. e4 {[%clk 0:03:00.9]} 1... c5 {[%clk 0:02:55.9]} 2. Nf3 {[%clk 0:03:00.7]}
2... Nc6 {[%clk 0:02:56]} 3. c3 {[%clk 0:02:59.9]} 3... d5 {[%clk 0:02:51.7]} 4.
exd5 {[%clk 0:02:59.3]} 4... Qxd5 {[%clk 0:02:52]} 5. d4 {[%clk 0:02:58.5]} 5...
Bg4 {[%clk 0:02:45.1]} 6. Be2 {[%clk 0:02:58.3]} 6... e6 {[%clk 0:02:39.7]} 7.
h3 {[%clk 0:02:55.2]} 7... Bh5 {[%clk 0:02:38.9]} 8. O-O {[%clk 0:02:54.1]} 8...
Nf6 {[%clk 0:02:37.2]} 9. Be3 {[%clk 0:02:50.4]} 9... cxd4 {[%clk 0:02:27.4]}
10. Nxd4 {[%clk 0:02:47.8]} 10... Bxe2 {[%clk 0:02:26]} 11. Qxe2 {[%clk
0:02:44.2]} 11... Be7 {[%clk 0:02:19.3]} 12. Nd2 {[%clk 0:02:40.9]} 12... O-O
{[%clk 0:02:17.5]} 13. N2f3 {[%clk 0:02:38.5]} 13... Rfd8 {[%clk 0:02:09.4]} 14.
Rfd1 {[%clk 0:02:28]} 14... Nxd4 {[%clk 0:02:09.2]} 15. Bxd4 {[%clk 0:02:24.6]}
15... Qa5 {[%clk 0:02:01.7]} 16. a4 {[%clk 0:02:18.4]} 16... h6 {[%clk
0:01:54.6]} 17. b4 {[%clk 0:02:11.6]} 17... Qh5 {[%clk 0:01:50.1]} 18. b5 {[%clk
0:02:06.9]} 18... a6 {[%clk 0:01:47]} 19. Qe5 {[%clk 0:01:45.9]} 19... Qg6
{[%clk 0:01:35.6]} 20. Qc7 {[%clk 0:01:40.7]} 20... Rd7 {[%clk 0:01:34.1]} 21.
Qc4 {[%clk 0:01:38.5]} 21... Nd5 {[%clk 0:01:23.1]} 22. Ne5 {[%clk 0:01:27.4]}
22... Qg5 {[%clk 0:00:55.5]} 23. Nxd7 {[%clk 0:01:21.8]} 23... Nf4 {[%clk
0:00:55.3]} 24. g3 {[%clk 0:01:09.4]} 24... Nxh3+ {[%clk 0:00:55.1]} 25. Kg2
{[%clk 0:01:07.7]} 25... Nf4+ {[%clk 0:00:55]} 26. Kf1 {[%clk 0:01:02.3]} 26...
Nd5 {[%clk 0:00:49.5]} 27. Qe2 {[%clk 0:00:53.6]} 27... Qf5 {[%clk 0:00:41.7]}
28. Ne5 {[%clk 0:00:48.9]} 28... Bd6 {[%clk 0:00:30.4]} 29. Qg4 {[%clk
0:00:33.9]} 29... Qc2 {[%clk 0:00:09.3]} 30. Nd3 {[%clk 0:00:24.3]} 30... g6
{[%clk 0:00:07.4]} 31. Qh4 {[%clk 0:00:24.1]} 31... Kh7 {[%clk 0:00:06.4]} 32.
Rac1 {[%clk 0:00:18.9]} 32... Qa2 {[%clk 0:00:05.7]} 33. c4 {[%clk 0:00:16.6]}
33... Be7 {[%clk 0:00:02.9]} 34. Qe4 {[%clk 0:00:14.5]} 1-0

[Event "*** Titled Tuesday Blitz"]
[Site "Chess.com"]
[Date "2020.10.20"]
[Round "7"]
[White "Berardino"]
[Black "Sharpchess22"]
[Result "0-1"]
[WhiteElo "2584"]
[BlackElo "2766"]
[TimeControl "180+1"]
[EndTime "11:20:09 PDT"]
[Termination "Sharpchess22 won by checkmate"]

1. e4 {[%clk 0:03:00.9]} 1... d6 {[%clk 0:02:59.7]} 2. d4 {[%clk 0:03:00.6]}
2... g6 {[%clk 0:02:59.8]} 3. c4 {[%clk 0:02:58.6]} 3... Bg7 {[%clk 0:02:59.7]}
4. Nc3 {[%clk 0:02:58.5]} 4... e5 {[%clk 0:02:59.5]} 5. Nge2 {[%clk 0:02:55.2]}
5... Nc6 {[%clk 0:02:59.1]} 6. Be3 {[%clk 0:02:55.3]} 6... Nf6 {[%clk
0:02:50.4]} 7. d5 {[%clk 0:02:54.5]} 7... Ne7 {[%clk 0:02:49.5]} 8. f3 {[%clk
0:02:54.8]} 8... O-O {[%clk 0:02:48.8]} 9. g4 {[%clk 0:02:44.1]} 9... c6 {[%clk
0:02:48.9]} 10. Ng3 {[%clk 0:02:41.8]} 10... cxd5 {[%clk 0:02:37.1]} 11. cxd5
{[%clk 0:02:40.9]} 11... Bd7 {[%clk 0:02:34.9]} 12. Qd2 {[%clk 0:02:36.8]} 12...
a6 {[%clk 0:02:31.9]} 13. h4 {[%clk 0:02:34.8]} 13... b5 {[%clk 0:02:32.1]} 14.
h5 {[%clk 0:02:34.3]} 14... b4 {[%clk 0:02:31.9]} 15. Nd1 {[%clk 0:02:31.3]}
15... Bxg4 {[%clk 0:02:08.2]} 16. fxg4 {[%clk 0:02:19.4]} 16... Nxg4 {[%clk
0:02:09.1]} 17. hxg6 {[%clk 0:02:12.8]} 17... hxg6 {[%clk 0:02:01.4]} 18. Bh3
{[%clk 0:02:06.3]} 18... Nxe3 {[%clk 0:01:58.6]} 19. Nxe3 {[%clk 0:02:07.2]}
19... Qb6 {[%clk 0:01:51.6]} 20. O-O-O {[%clk 0:01:42.4]} 20... Bh6 {[%clk
0:01:45.6]} 21. Rde1 {[%clk 0:01:42.4]} 21... Bf4 {[%clk 0:01:40.9]} 22. Rhg1
{[%clk 0:01:33]} 22... Qd4 {[%clk 0:01:37.4]} 23. Qf2 {[%clk 0:01:14.4]} 23...
Rfc8+ {[%clk 0:01:33.2]} 24. Bxc8 {[%clk 0:01:13.3]} 24... Rxc8+ {[%clk
0:01:33]} 25. Kb1 {[%clk 0:01:13.1]} 25... b3 {[%clk 0:01:31.2]} 26. axb3 {[%clk
0:01:12.3]} 26... Qd3+ {[%clk 0:01:30.2]} 27. Ka2 {[%clk 0:01:08.9]} 27... Rc5
{[%clk 0:01:27.1]} 28. Nc4 {[%clk 0:01:04.4]} 28... Rb5 {[%clk 0:01:23.3]} 29.
Nf5 {[%clk 0:00:38.5]} 29... Qxb3+ {[%clk 0:01:16.2]} 30. Kb1 {[%clk 0:00:38.4]}
30... Nxf5 {[%clk 0:01:05.1]} 31. exf5 {[%clk 0:00:30.8]} 31... Qxc4 {[%clk
0:01:03.9]} 32. fxg6 {[%clk 0:00:31]} 32... f5 {[%clk 0:00:56.5]} 33. Qc2 {[%clk
0:00:15.3]} 33... Qxc2+ {[%clk 0:00:55.7]} 34. Kxc2 {[%clk 0:00:16.2]} 34... Kg7
{[%clk 0:00:55.3]} 35. Ra1 {[%clk 0:00:15.3]} 35... a5 {[%clk 0:00:48.7]} 36.
Ra3 {[%clk 0:00:15.8]} 36... Rxd5 {[%clk 0:00:38.6]} 37. Rc3 {[%clk 0:00:16.2]}
37... Rc5 {[%clk 0:00:34.4]} 38. Rxc5 {[%clk 0:00:16.6]} 38... dxc5 {[%clk
0:00:34.8]} 39. b3 {[%clk 0:00:16.1]} 39... Be3 {[%clk 0:00:32.1]} 40. Rg2
{[%clk 0:00:15.1]} 40... e4 {[%clk 0:00:30.5]} 41. Kd1 {[%clk 0:00:09]} 41...
Bd4 {[%clk 0:00:27.6]} 42. Ra2 {[%clk 0:00:08.7]} 42... Kxg6 {[%clk 0:00:27.2]}
43. Rxa5 {[%clk 0:00:09.2]} 43... f4 {[%clk 0:00:26.5]} 44. Ra8 {[%clk
0:00:09.7]} 44... f3 {[%clk 0:00:25.6]} 45. Rf8 {[%clk 0:00:10.2]} 45... Kg5
{[%clk 0:00:25.2]} 46. Ke1 {[%clk 0:00:10.5]} 46... Kg4 {[%clk 0:00:25.1]} 47.
Kf1 {[%clk 0:00:11]} 47... e3 {[%clk 0:00:25.1]} 48. Rg8+ {[%clk 0:00:11.4]}
48... Kf4 {[%clk 0:00:25.3]} 49. Rf8+ {[%clk 0:00:11.7]} 49... Ke4 {[%clk
0:00:25.7]} 50. Re8+ {[%clk 0:00:12.1]} 50... Kd3 {[%clk 0:00:25.8]} 51. Rd8
{[%clk 0:00:13]} 51... e2+ {[%clk 0:00:25.4]} 52. Ke1 {[%clk 0:00:13.9]} 52...
f2# {[%clk 0:00:25.6]} 0-1